bitfinex/quotes_SOLUSD_20250207
["timestamp","ask_amount","ask_price","bid_price","bid_amount"]
[1738936133096,7.74524562,200.17,200.03,44.81593048]
[1738936133097,39.81693048,200.1,200.03,44.81593048]
[1738936133278,39.81693048,200.11,200.04,39.81693048]
[1738936133475,39.81693048,200.12,200.04,39.81693048]
[1738936133680,39.81693048,200.12,200.05,39.81693048]
[1738936133886,39.81693048,200.13,200.06,44.81513048]
[1738936134106,39.81693048,200.12,200.06,4.9982]
[1738936134398,39.81693048,200.12,200.05,44.81553048]
[1738936134899,39.81693048,200.11,200.05,4.9986]
[1738936135202,39.81693048,200.08,200.01,39.81693048]
[1738936135795,39.81693048,200.11,200.04,39.81693048]
[1738936136100,7.74524562,200.17,200.09,39.81693048]
[1738936136596,23.98105719,200.16,200.08,23.98105719]
[1738936136978,23.98105719,200.12,200.06,23.98105719]
[1738936137180,8.68212828,200.17,200.04,4.9989]
[1738936137181,23.98105719,200.11,200.04,28.97995719]
[1738936137376,7.74524562,200.17,200.1,23.98105719]
[1738936137577,7.74524562,200.17,200.11,0.7493996]
[1738936137977,7.74524562,200.17,200.12,4.997]
[1738936138498,7.74524562,200.17,200.12,18.23874347]
[1738936138690,7.74524562,200.17,200.15,38.93878537]
[1738936139506,7.74524562,200.17,200.14,38.93878537]
[1738936140084,7.74524562,200.17,200.14,43.93518537]
[1738936140286,7.74524562,200.17,200.11,7.01508269]
[1738936140287,7.74524562,200.17,200.11,38.93878537]
[1738936140487,46.68403099,200.17,200.1,38.93878537]
[1738936140917,7.74524562,200.17,200.11,38.93878537]
[1738936141082,7.74524562,200.17,200.12,38.93878537]
[1738936141288,7.74524562,200.17,200.14,38.93878537]
[1738936141487,8.24474562,200.17,200.11,38.93878537]
[1738936141707,0.4995,200.17,200.11,38.93878537]
[1738936141909,38.93878537,200.13,200.06,38.93878537]
[1738936142214,38.93878537,200.13,200.05,45.48008537]
[1738936142410,38.93878537,200.13,200.06,38.93878537]
[1738936143099,38.93878537,200.14,200.07,38.93878537]
[1738936143486,38.93878537,200.15,200.08,38.93878537]
[1738936143687,39.43828537,200.18,200.12,119.4198751]
[1738936143910,38.93878537,200.17,200.12,119.4198751]
[1738936144293,38.93878537,200.19,200.13,4.9967]
[1738936144596,0.4994,200.23,200.13,4.9967]
[1738936144597,38.93878537,200.2,200.13,4.9967]
[1738936144795,0.4994,200.23,200.13,53.88714162]
[1738936144995,38.93878537,200.19,200.16,75.06083963]
[1738936145210,0.4994,200.23,200.16,75.06083963]
[1738936145211,14.63762869,200.17,200.16,75.06083963]
[1738936145709,14.63762869,200.17,200.16,105.82952649]
[1738936145899,38.93878537,200.17,200.16,105.82952649]
[1738936146286,38.93878537,200.21,200.16,106.82952649]
[1738936146486,38.93878537,200.22,200.17,1.0]
[1738936146693,38.93878537,200.22,200.18,1.0]
[1738936147302,38.93878537,200.21,200.16,107.82952649]
[1738936147522,38.93878537,200.2,200.16,105.82952649]
[1738936147728,38.93878537,200.17,200.16,105.82952649]
[1738936148427,39.43828537,200.18,200.16,105.82952649]
[1738936148921,0.4995,200.18,200.16,105.82952649]
[1738936149119,39.43828537,200.2,200.16,105.82952649]
[1738936149323,38.93878537,200.18,200.16,105.82952649]
[1738936149822,38.93878537,200.19,200.16,105.82952649]
[1738936150015,39.43828537,200.17,200.16,105.82952649]
[1738936152221,39.43828537,200.17,200.16,93.36782649]
[1738936152396,39.43828537,200.17,200.16,91.29082649]
[1738936152933,20.0,200.14,200.03,1.0]
[1738936153139,39.43828537,200.17,200.02,0.063]
[1738936153140,38.93878537,200.06,200.02,0.063]
[1738936153432,38.93878537,200.05,200.02,0.063]
[1738936153634,38.93878537,200.06,200.02,0.063]
[1738936153798,38.93878537,200.04,200.02,0.063]
[1738936154111,38.93878537,200.03,200.02,0.063]
[1738936154315,39.43868537,200.03,200.02,0.063]
[1738936155198,38.93878537,200.03,200.02,0.063]
[1738936156030,77.87757074,200.03,200.02,0.063]
[1738936156425,38.93878537,200.03,200.02,0.063]
[1738936157106,20.0,200.0,199.88,6.2637]
[1738936157327,38.93878537,199.96,199.9,1.0]
[1738936157515,1.24187034,200.09,199.95,1.0]
[1738936157516,38.93878537,199.99,199.95,1.0]
[1738936157716,38.93878537,199.99,199.94,1.0]
[1738936157915,1.6319,200.09,199.92,1.0]
[1738936157916,1.2495,200.07,199.92,1.0]
[1738936158164,20.0,200.06,199.92,1.0]
[1738936158300,1.7494,200.05,199.92,2.0]
[1738936158507,1.7494,200.05,199.92,1.0]
[1738936158708,1.7494,200.05,199.93,1.0]
[1738936158930,38.93878537,200.01,199.93,39.93878537]
[1738936159235,38.93878537,200.01,199.94,2.0]
[1738936159421,38.93878537,200.01,199.95,1.0]
[1738936160045,38.93878537,199.99,199.95,1.0]
[1738936160215,38.93878537,199.99,199.92,1.0]
[1738936160537,0.5,199.98,199.94,1.0]
[1738936160835,24.02145197,200.0,199.95,1.0]
[1738936161032,24.02145197,200.01,199.95,1.0]
[1738936161336,24.02145197,200.01,199.97,1.0]
[1738936161534,24.02145197,200.01,199.95,2.0]
[1738936161828,24.02145197,199.96,199.92,2.063]
[1738936162136,24.02145197,199.96,199.92,0.063]
[1738936162336,24.02145197,199.98,199.94,1.0]
[1738936162541,24.02145197,199.97,199.94,1.0]
[1738936162711,0.03,200.06,199.92,0.063]
[1738936162712,24.02145197,199.95,199.92,0.063]
[1738936162910,24.02145197,199.93,199.92,0.063]
[1738936163310,24.02145197,199.93,199.92,0.0001]
[1738936164139,48.04290394,199.93,199.92,0.0001]
[1738936164840,20.0,199.9,199.82,0.063]
[1738936165139,20.0,199.9,199.82,0.0001]
[1738936165140,24.02145197,199.83,199.82,0.0001]
[1738936165511,48.04290394,199.83,199.81,0.0001]
[1738936165707,24.02145197,199.82,199.81,0.0001]
[1738936167251,48.04290394,199.82,199.81,0.0001]
[1738936167414,24.02145197,199.82,199.81,0.0001]
[1738936168037,48.04290394,199.82,199.81,0.0001]
[1738936168237,18.36304853,199.87,199.72,0.063]
[1738936168238,24.02145197,199.73,199.72,0.063]
[1738936168615,24.02145197,199.73,199.63,1.0]
[1738936168842,24.02145197,199.65,199.62,0.063]
[1738936169327,24.02145197,199.8,199.62,1.063]
[1738936169328,24.02145197,199.67,199.62,1.063]
[1738936169537,24.02145197,199.67,199.64,1.0]
[1738936169743,24.02145197,199.68,199.64,2.0]
[1738936170053,24.02145197,199.8,199.68,1.0]
[1738936170054,24.02145197,199.73,199.68,1.0]
[1738936170224,20.0,199.76,199.63,1.0]
[1738936170425,20.0,199.76,199.62,0.063]
[1738936170635,20.0,199.74,199.62,0.063]
[1738936171038,20.0,199.7,199.62,0.063]
[1738936171236,20.0,199.7,199.62,0.0001]
[1738936171237,48.04290394,199.63,199.62,0.0001]
[1738936171548,48.04290394,199.63,199.51,0.063]
[1738936171864,24.02145197,199.57,199.54,1.0]
[1738936172026,24.02145197,199.56,199.51,0.063]
[1738936172335,13.41184853,199.66,199.51,0.063]
[1738936172336,33.41184853,199.66,199.51,0.063]
[1738936172654,24.02145197,199.52,199.51,0.063]
[1738936174535,24.02145197,199.55,199.51,0.063]
[1738936174736,39.20894259,199.54,199.51,0.063]
[1738936175030,39.20894259,199.53,199.51,0.063]
[1738936175244,39.20894259,199.52,199.51,0.063]
[1738936175964,39.20894259,199.54,199.51,1.063]
[1738936176131,39.20894259,199.6,199.51,1.063]
[1738936176132,39.20894259,199.55,199.53,1.0]
[1738936176332,39.20894259,199.58,199.54,1.0]
[1738936176758,39.20894259,199.57,199.52,2.0]
[1738936176975,39.20894259,199.57,199.53,1.0]
[1738936177175,39.20894259,199.57,199.54,1.0]
[1738936177371,39.20894259,199.59,199.57,1.0]
[1738936177687,39.20894259,199.58,199.54,2.0]
[1738936177861,39.20894259,199.56,199.52,2.0]
[1738936178058,39.20894259,199.54,199.51,1.063]
[1738936178747,39.20894259,199.59,199.55,1.0]
[1738936178965,39.20894259,199.59,199.57,1.0]
[1738936179158,29.75817384,199.64,199.58,1.0]
[1738936179159,39.20894259,199.61,199.58,1.0]
[1738936179370,29.75817384,199.64,199.61,1.0]
[1738936179371,68.96711643,199.64,199.61,1.0]
[1738936179885,39.20894259,199.65,199.63,1.0]
[1738936180048,39.20894259,199.65,199.62,1.0]
[1738936180698,39.20894259,199.63,199.6,2.0]
[1738936180865,39.20894259,199.62,199.59,1.0]
[1738936181071,39.20894259,199.61,199.59,1.0]
[1738936181279,39.20894259,199.62,199.59,1.0]
[1738936181573,39.20894259,199.62,199.6,1.0]
[1738936182582,39.20894259,199.7,199.55,50.26944259]
[1738936182583,39.20894259,199.65,199.61,1.0]
[1738936183280,39.20894259,199.67,199.66,1.0]
[1738936183452,39.20894259,199.68,199.65,2.0]
[1738936183653,39.20894259,199.69,199.67,1.0]
[1738936183857,39.20894259,199.76,199.73,2.0]
[1738936184050,0.03,199.8,199.71,1.0]
[1738936184265,0.03,199.8,199.69,1.0]
[1738936184551,39.20894259,199.7,199.66,1.0]
[1738936184874,39.20894259,199.7,199.64,1.5588]
[1738936184875,39.20894259,199.7,199.68,1.0]
[1738936185053,39.20894259,199.7,199.67,2.0]
[1738936185563,39.20894259,199.68,199.63,1.0]
[1738936185760,39.20894259,199.65,199.62,1.0]
[1738936185973,39.20894259,199.65,199.62,2.0]
[1738936186189,39.20894259,199.66,199.62,2.0]
[1738936186478,39.20894259,199.68,199.66,1.0]
[1738936186685,39.20894259,199.69,199.67,1.0]
[1738936186987,39.20894259,199.71,199.69,2.0]
[1738936187355,39.20894259,199.73,199.72,1.0]
[1738936187590,39.20894259,199.76,199.74,2.0]
[1738936187750,39.20894259,199.77,199.73,2.0]
[1738936188074,39.20894259,199.74,199.71,1.0]
[1738936188258,39.20894259,199.75,199.74,1.0]
[1738936188454,0.03,199.8,199.74,1.0]
[1738936188648,39.20894259,199.79,199.76,1.0]
[1738936188957,39.23894259,199.8,199.78,1.0]
[1738936189158,0.03,199.8,199.78,1.0]
[1738936189471,39.23894259,199.8,199.77,1.0]
[1738936190248,39.20894259,199.78,199.74,1.0]
[1738936190557,0.03,199.8,199.76,1.0]
[1738936190558,39.20894259,199.79,199.76,1.0]
[1738936190747,39.20894259,199.79,199.78,1.0]
[1738936190950,0.03,199.8,199.78,1.0]
[1738936191181,0.03,199.8,199.79,2.0]
[1738936191357,0.03,199.8,199.79,41.20894259]
[1738936191952,0.03,199.8,199.79,47.65844259]
[1738936192379,0.03,199.8,199.79,61.82084089]
[1738936192561,39.20894259,199.91,199.9,2.0]
[1738936192768,39.20894259,199.93,199.9,1.0]
[1738936192953,46.48057632,200.01,199.88,2.0]
[1738936192954,39.20894259,199.91,199.88,2.0]
[1738936193149,46.48057632,200.01,199.88,2.0]
[1738936193150,39.20894259,199.9,199.88,1.0]
[1738936193354,39.20894259,199.9,199.89,1.0]
[1738936193583,39.20894259,199.92,199.91,2.0]
[1738936193782,39.20894259,199.93,199.92,2.0]
[1738936193964,39.20894259,199.96,199.94,1.0]
[1738936194373,39.20894259,199.97,199.95,1.0]
[1738936194580,39.20894259,199.97,199.95,2.0]
[1738936194786,39.20894259,199.99,199.98,1.0]
[1738936194956,1.6087,200.13,199.99,1.0]
[1738936194957,39.20894259,200.0,199.99,1.0]
[1738936195776,39.20894259,200.01,200.0,1.0]
[1738936196490,39.20894259,200.01,199.99,1.0]
[1738936196692,24.01858058,200.0,199.95,1.0]
[1738936196997,24.01858058,199.96,199.94,1.0]
[1738936197180,24.01858058,200.0,199.94,1.0]
[1738936197181,24.01858058,199.95,199.94,1.0]
[1738936197492,24.01858058,199.95,199.9,1.0]
[1738936197789,24.01858058,199.95,199.89,1.0]
[1738936197790,24.01858058,199.92,199.91,1.0]
[1738936197982,24.01858058,199.94,199.93,1.0]
[1738936198582,24.01858058,199.94,199.92,2.0]
[1738936198765,24.01858058,199.93,199.91,2.0]
[1738936198958,24.01858058,199.92,199.88,1.0]
[1738936199158,24.01858058,199.89,199.86,1.0]
[1738936199378,24.01858058,199.87,199.83,1.0]
[1738936199570,24.01858058,199.84,199.83,1.0]
[1738936200570,24.01858058,199.84,199.81,1.0]
[1738936200773,24.01858058,199.82,199.79,2.0]
[1738936200975,20.0,199.87,199.82,1.0]
[1738936201173,24.01858058,199.9,199.83,1.0]
[1738936201570,13.41184853,199.89,199.79,2.0]
[1738936201775,20.0,199.86,199.78,1.0]
[1738936201986,20.0,199.86,199.8,2.0]
[1738936202178,24.01858058,199.81,199.78,1.0]
[1738936202386,24.01858058,199.79,199.78,1.0]
[1738936202581,24.01858058,199.79,199.72,1.0]
[1738936202888,24.01858058,199.74,199.73,1.0]
[1738936203097,24.01858058,199.74,199.72,1.0]
[1738936203291,24.01858058,199.73,199.69,2.0]
[1738936203475,24.01858058,199.8,199.73,1.0]
[1738936203681,4.9512,199.88,199.75,1.0]
[1738936203682,24.01858058,199.76,199.75,1.0]
[1738936203908,5.3,199.92,199.79,1.0]
[1738936204079,24.01858058,199.8,199.78,2.0]
[1738936204272,4.9512,199.94,199.83,1.0]
[1738936204472,24.01858058,199.85,199.84,1.0]
[1738936204801,24.01858058,199.85,199.82,2.0]
[1738936204970,24.01858058,199.84,199.82,2.0]
[1738936205165,24.01858058,199.83,199.79,2.0]
[1738936205374,24.01858058,199.8,199.79,1.0]
[1738936205585,24.01858058,199.83,199.81,1.0]
[1738936205783,24.01858058,199.83,199.73,0.75080865]
[1738936205784,31.20990704,199.99,199.85,1.0]
[1738936206096,31.20990704,199.99,199.86,2.0]
[1738936206396,24.01858058,199.87,199.83,1.0]
[1738936206563,31.20990704,199.99,199.8,1.0]
[1738936206564,39.10461905,199.84,199.8,1.0]
[1738936206766,20.0,199.87,199.8,1.0]
[1738936206992,39.10461905,199.81,199.78,1.0]
[1738936207193,39.10461905,199.79,199.76,1.0]
[1738936207372,39.10461905,199.77,199.76,1.0]
[1738936207567,39.10461905,199.78,199.76,1.0]
[1738936207778,39.10461905,199.9,199.76,1.0]
[1738936207779,39.10461905,199.79,199.76,1.0]
[1738936207985,39.10461905,199.77,199.76,1.0]
[1738936208298,39.10461905,199.77,199.7,1.0]
[1738936208466,39.10461905,199.8,199.69,1.0]
[1738936208467,13.41184853,199.79,199.69,1.0]
[1738936208667,20.0,199.76,199.67,1.0]
[1738936208868,39.10461905,199.68,199.66,1.0]
[1738936209077,39.10461905,199.67,199.66,1.0]
[1738936209695,39.10461905,199.68,199.67,1.0]
[1738936210073,39.10461905,199.68,199.65,1.0]
[1738936210277,33.41184853,199.76,199.64,1.0]
[1738936210278,39.10461905,199.66,199.64,1.0]
[1738936210481,39.10461905,199.65,199.63,1.0]
[1738936210735,39.10461905,199.7,199.6,0.063]
[1738936210736,39.10461905,199.64,199.61,1.0]
[1738936210982,39.10461905,199.64,199.63,1.0]
[1738936211289,39.10461905,199.8,199.68,1.0]
[1738936211490,39.10461905,199.8,199.6,5.0729]
[1738936211491,39.10461905,199.71,199.7,1.0]
[1738936211889,39.10461905,199.71,199.7,2.0]
[1738936212394,39.10461905,199.71,199.64,39.10461905]
[1738936212395,39.10461905,199.75,199.73,2.0]
[1738936212602,39.10461905,199.74,199.71,2.0]
[1738936212779,39.10461905,199.72,199.69,1.0]
[1738936213103,39.10461905,199.7,199.67,2.0]
[1738936213281,39.10461905,199.7,199.69,1.0]
[1738936213486,39.10461905,199.72,199.71,2.0]
[1738936213687,39.10461905,199.72,199.71,1.0]
[1738936213883,39.10461905,199.72,199.68,1.0]
[1738936214203,13.41184853,199.75,199.64,1.0]
[1738936214592,39.10461905,199.66,199.64,1.0]
[1738936214794,20.0,199.77,199.64,1.0]
[1738936215025,39.10461905,199.67,199.65,1.0]
[1738936215214,13.41184853,199.76,199.64,1.0]
[1738936215215,39.10461905,199.66,199.64,1.0]
[1738936215417,39.10461905,199.65,199.64,1.0]
[1738936215906,39.10461905,199.68,199.67,2.0]
[1738936216089,39.10461905,199.68,199.67,1.0]
[1738936216300,39.13461905,199.8,199.72,2.0]
[1738936216488,39.13461905,199.8,199.74,1.0]
[1738936216687,0.03,199.8,199.74,2.0]
[1738936217000,0.03,199.8,199.77,1.0]
[1738936217325,0.03,199.8,199.79,2.0]
[1738936217688,0.03,199.8,199.79,41.10461905]
[1738936218712,0.03,199.8,199.79,2.0]
[1738936219399,39.13461905,199.8,199.79,2.0]
[1738936219592,0.03,199.8,199.79,2.0]
[1738936219904,0.03,199.8,199.79,41.10461905]
[1738936223129,0.03,199.8,199.79,46.8603707]
[1738936223515,0.03,199.8,199.79,59.52166758]
[1738936224030,0.03,199.8,199.79,46.10981905]
[1738936225224,0.03,199.8,199.79,59.52166758]
[1738936225402,39.10461905,199.93,199.92,2.0]
[1738936225603,39.10461905,199.93,199.92,1.0]
[1738936225821,39.10461905,199.93,199.89,1.0]
[1738936226019,39.10461905,199.9,199.87,1.0]
[1738936226224,39.10461905,199.88,199.87,1.0]
[1738936226527,13.41184853,199.98,199.86,1.0]
[1738936226528,29.70690704,199.99,199.97,1.0]
[1738936226828,0.03,200.0,199.98,2.0]
[1738936227324,0.03,200.0,199.99,1.0]
[1738936227723,0.03,200.0,199.99,2.0]
[1738936228116,0.03,200.0,199.99,26.02190754]
[1738936228625,0.03,200.0,199.99,2.0]
[1738936229632,0.03,200.0,199.99,46.00895503]
[1738936230007,0.03,200.0,199.99,60.17064488]
[1738936230237,0.03,200.0,199.99,41.00875503]
[1738936230408,0.03,200.0,199.99,2.0]
[1738936231126,0.03,200.0,199.99,46.00895503]
[1738936231932,0.03,200.0,199.99,59.42080356]
[1738936232440,0.03,200.0,199.99,46.00895503]
[1738936232802,0.03,200.0,199.99,60.42080356]
[1738936233008,0.03,200.01,200.0,13.41184853]
[1738936233207,0.03,200.01,200.0,92.17900076]
[1738936233431,0.03,200.01,200.0,53.17024573]
[1738936233634,0.03,200.01,200.0,52.42060356]
[1738936233832,0.03,200.01,200.0,54.17036267]
[1738936234223,39.00875503,200.13,200.12,1.0]
[1738936234427,39.00875503,200.14,200.13,1.0]
[1738936235425,39.00875503,200.17,200.15,1.0]
[1738936235740,0.03,200.22,200.16,1.0]
[1738936235929,39.00875503,200.17,200.16,1.0]
[1738936236237,0.03,200.22,200.13,2.0]
[1738936236532,0.03,200.22,200.14,1.0]
[1738936236842,20.0,200.21,200.16,1.0]
[1738936237144,20.0,200.21,200.13,1.0]
[1738936237145,20.0,200.21,200.14,1.0]
[1738936237334,39.00875503,200.15,200.12,1.0]
[1738936237641,39.00875503,200.16,200.14,2.0]
[1738936237818,39.00875503,200.15,200.14,1.0]
[1738936238637,0.03,200.22,200.14,1.0]
[1738936238638,39.00875503,200.16,200.14,1.0]
[1738936238829,39.00875503,200.18,200.16,2.0]
[1738936239022,39.00875503,200.2,200.18,2.0]
[1738936239340,39.00875503,200.19,200.16,2.0]
[1738936239549,39.00875503,200.17,200.14,1.0]
[1738936239717,39.00875503,200.15,200.14,2.0]
[1738936240029,39.00875503,200.16,200.14,2.0]
[1738936240230,39.00875503,200.15,200.12,1.0]
[1738936240435,39.00875503,200.13,200.12,1.0]
[1738936240779,39.00875503,200.13,200.11,1.0]
[1738936240918,39.00875503,200.2,200.11,1.0]
[1738936240919,39.00875503,200.12,200.11,1.0]
[1738936241251,39.00875503,200.12,200.1,1.0]
[1738936241440,39.00875503,200.13,200.1,1.0]
[1738936241636,39.00875503,200.13,200.12,1.0]
[1738936242156,39.00875503,200.13,200.1,1.0]
[1738936242320,39.00875503,200.11,200.1,1.0]
[1738936242524,39.00875503,200.11,200.07,1.0]
[1738936242722,39.00875503,200.08,200.06,1.0]
[1738936242925,13.41184853,200.19,200.05,1.0]
[1738936242926,39.00875503,200.07,200.05,1.0]
[1738936243136,39.00875503,200.06,200.05,1.0]
[1738936243324,39.00875503,200.06,200.03,1.0]
[1738936243523,39.00875503,200.04,200.02,1.0]
[1738936243745,39.00875503,200.03,200.0,1.063]
[1738936244043,39.00875503,200.02,200.0,0.063]
[1738936244250,20.0,200.07,200.0,0.063]
[1738936244251,39.00875503,200.01,200.0,0.063]
[1738936244457,39.00875503,200.01,200.0,1.063]
[1738936244960,39.00875503,200.02,200.0,1.063]
[1738936245565,39.00875503,200.01,200.0,0.063]
[1738936245861,39.00875503,200.02,200.0,0.063]
[1738936246025,39.00875503,200.05,200.03,1.0]
[1738936246227,5.0111,200.15,200.07,1.0]
[1738936246427,5.0111,200.15,200.0,0.063]
[1738936246428,39.00875503,200.11,200.09,1.0]
[1738936246826,39.00875503,200.1,200.09,1.0]
[1738936247550,39.00875503,200.11,200.09,1.0]
[1738936247752,39.00875503,200.12,200.11,1.0]
[1738936248067,39.00875503,200.13,200.11,1.0]
[1738936248290,39.00875503,200.12,200.11,1.0]
[1738936248854,39.00875503,200.12,200.1,1.0]
[1738936249149,20.0,200.17,200.1,1.0]
[1738936249341,20.0,200.17,200.13,1.0]
[1738936249659,39.00875503,200.14,200.12,1.0]
[1738936249862,39.00875503,200.13,200.12,1.0]
[1738936250235,39.00875503,200.16,200.14,1.0]
[1738936250542,0.03,200.22,200.17,1.0]
[1738936250750,0.03,200.22,200.15,1.0]
[1738936251053,39.00875503,200.16,200.15,1.0]
[1738936251461,39.00875503,200.16,200.05,6.1751]
[1738936251462,39.00875503,200.16,200.11,1.0]
[1738936251638,39.00875503,200.12,200.1,1.0]
[1738936251966,39.00875503,200.11,200.09,1.0]
[1738936252479,39.00875503,200.12,200.1,1.0]
[1738936252859,39.00875503,200.14,200.12,2.0]
[1738936253365,39.00875503,200.15,200.12,2.0]
[1738936253555,39.00875503,200.16,200.14,2.0]
[1738936253880,39.00875503,200.17,200.14,2.0]
[1738936254181,39.00875503,200.17,200.16,2.0]
[1738936254366,0.03,200.22,200.19,1.0]
[1738936254367,39.00875503,200.2,200.19,1.0]
[1738936254568,0.03,200.22,200.21,2.0]
[1738936255387,23.98640396,200.22,200.21,2.0]
[1738936255680,23.98640396,200.22,200.19,8.1372]
[1738936255854,23.95640396,200.2,200.19,8.1372]
[1738936256054,23.95640396,200.2,200.19,2.0]
[1738936256272,23.95640396,200.21,200.19,2.0]
[1738936256478,0.03,200.22,200.21,1.0]
[1738936256684,0.03,200.22,200.21,2.0]
[1738936257674,38.96680137,200.22,200.21,2.0]
[1738936257980,0.03,200.22,200.21,2.0]
[1738936258351,38.96680137,200.22,200.21,2.0]
[1738936258946,38.96680137,200.22,200.19,2.0]
[1738936259151,38.93680137,200.2,200.17,1.0]
[1738936259371,0.03,200.22,200.17,1.0]
[1738936259372,38.93680137,200.18,200.17,1.0]
[1738936259579,38.93680137,200.2,200.19,2.0]
[1738936259774,38.96680137,200.22,200.21,2.0]
[1738936260169,38.96680137,200.22,200.19,2.0]
[1738936260390,38.93680137,200.2,200.19,2.0]
[1738936260988,38.93680137,200.2,200.17,2.0]
[1738936261186,38.93680137,200.18,200.15,2.0]
[1738936261489,38.93680137,200.16,200.13,2.0]
[1738936261662,38.93680137,200.14,200.13,1.0]
[1738936261866,38.93680137,200.14,200.11,1.0]
[1738936262169,38.93680137,200.12,200.06,1.0]
[1738936262361,38.93680137,200.07,200.06,1.0]
[1738936262561,38.93680137,200.09,200.08,1.0]
[1738936263199,38.93680137,200.09,200.05,2.0]
[1738936263366,38.93680137,200.06,200.05,2.0]
[1738936263770,38.93680137,200.06,200.02,1.0]
[1738936263986,38.93680137,200.03,200.0,1.063]
[1738936264183,38.93680137,200.01,200.0,1.063]
[1738936264489,38.93680137,200.03,200.02,1.0]
[1738936264885,38.93680137,200.1,200.02,1.0]
[1738936264886,38.93680137,200.04,200.02,1.0]
[1738936265079,38.93680137,200.05,200.03,1.0]
[1738936266198,38.93680137,200.1,200.08,1.0]
[1738936266378,38.93680137,200.11,200.08,2.0]
[1738936266570,38.93680137,200.1,200.08,2.0]
[1738936267205,38.93680137,200.15,200.14,1.0]
[1738936267371,38.93680137,200.17,200.15,1.0]
[1738936267999,38.93680137,200.17,200.14,1.0]
[1738936268178,38.93680137,200.15,200.14,1.0]
[1738936268808,38.93680137,200.17,200.16,1.0]
[1738936269302,38.93680137,200.17,200.13,1.0]
[1738936269603,38.93680137,200.14,200.12,1.0]
[1738936269770,38.93680137,200.14,200.1,1.0]
[1738936269971,38.93680137,200.13,200.12,1.0]
[1738936270168,38.93680137,200.15,200.14,1.0]
[1738936270390,38.93680137,200.15,200.14,2.0]
[1738936270842,38.93680137,200.15,200.12,1.0]
[1738936270976,38.93680137,200.13,200.12,1.0]
[1738936271181,38.93680137,200.17,200.16,2.0]
[1738936271383,38.93680137,200.18,200.16,2.0]
[1738936271978,38.93680137,200.19,200.18,1.0]
[1738936272410,20.0,200.16,200.09,1.0]
[1738936272708,38.93680137,200.1,200.08,1.0]
[1738936272910,38.93680137,200.1,200.05,2.0]
[1738936272911,38.93680137,200.09,200.05,2.0]
[1738936273201,38.93680137,200.06,200.05,1.0]
[1738936273710,38.93680137,200.13,200.11,1.0]
[1738936273911,38.93680137,200.14,200.13,1.0]
[1738936274080,0.03,200.15,200.13,1.0]
[1738936274409,38.96680137,200.15,200.14,1.0]
[1738936275476,0.03,200.15,200.14,1.0]
[1738936276294,38.96680137,200.15,200.14,1.0]
[1738936276486,38.96680137,200.15,200.13,1.0]
[1738936276690,38.93680137,200.14,200.13,1.0]
[1738936277022,38.93680137,200.14,200.11,1.0]
[1738936277322,38.93680137,200.12,200.09,1.0]
[1738936277506,38.93680137,200.1,200.09,1.0]
[1738936277826,38.93680137,200.12,200.09,1.0]
[1738936278115,38.93680137,200.13,200.11,1.0]
[1738936278297,0.03,200.15,200.09,1.0]
[1738936278508,38.93680137,200.1,200.09,1.0]
[1738936278898,38.93680137,200.12,200.09,1.0]
[1738936279226,38.93680137,200.12,200.11,2.0]
[1738936279428,38.93680137,200.14,200.13,1.0]
[1738936279601,38.93680137,200.14,200.11,1.0]
[1738936279602,38.93680137,200.14,200.11,2.0]
[1738936279792,38.93680137,200.12,200.11,1.0]